[Event "AUT Bundesliga 2024-25"]
[Site "Austria"]
[Date "2025.04.03"]
[Round "7.14"]
[White "Petrov, Nikita"]
[Black "Mamedyarov, Shakhriyar"]
[Result "0-1"]
[Annotator "TA"]
[ECO "C77"]
[WhiteElo "2567"]
[BlackElo "2748"]
[PlyCount "118"]
[EventDate "2024.08.28"]
[EventType "team-tourn"]
[EventCountry "AUT"]
[SourceTitle "playchess.com"]
[Source "ChessBase"]
[SourceQuality "1"]
[TimeControl "40/5400+30:1800+30"]

{[%evp 16,117,19,2,19,0,0,0,19,-12,26,0,0,0,0,0,0,0,0,0,0,0,0,0,0,0,36,0,35,18,22,0,0,-82,-60,-55,-14,-82,-73,-115,-125,-144,-141,-229,-215,-232,-239,-217,-233,-193,-189,-438,-431,-413,-231,-499,-503,-516,-354,-346,-269,-254,-181,-341,-308,-320,-370,-354,-326,-327,-333,-295,-295,-301,-320,-317,-288,-312,-303,-300,-247,-357,-266,-266,-266,-266,-266,-250,-250,-250,-250,-250,-250,-279,-250,-270,-273,-29981,-29982,-29993,-29984,-29998,-29999,-29999]} 1. e4 {[%emt 0:00:03]} e5 {[%emt 0:00:34]} 2. Nf3 {[%emt 0:00:18]} Nc6 {[%emt 0:00:07]} 3. Bb5 {[%emt 0:00:20][%cal Bf1b5,Bb5a4,Ba4b3][%mdl 32]} a6 {[%emt 0:00:14]} 4. Ba4 {[%emt 0:00:08]} Nf6 {[%emt 0:00:12]} 5. Nc3 {[%emt 0:00:24]} Be7 {[%emt 0:06:33]} 6. O-O {[%emt 0:02:06]} b5 {[%emt 0:00:41]} 7. Bb3 {[%emt 0:00:07]} O-O {[%emt 0:00:07]} 8. d3 {[%emt 0:04:12]} d6 {[%emt 0:01:08]} 9. a3 {[%emt 0:03:04]} Be6 {[%emt 0:05:49] C77: Ruy Lopez: 3...a6 4 Ba4 Nf6, unusual lines.} 10. Bxe6 {[%emt 0:01:54]} fxe6 {[%emt 0:01:55]} 11. Bd2 {[%emt 0:02:06]} Qe8 {[%emt 0:03:17] The position is equal.} 12. b4 $146 {[%emt 0:09:32]} (12. Ne2 Nh5 13. c3 d5 14. Ng3 Rd8 15. Nxh5 Qxh5 16. Qe2 Rf7 17. Rae1 Bf6 18. Be3 Qg6 19. Bc1 h6 20. h3 Kh7 21. Nd2 Rfd7 22. Nf3 Rf7 23. Nd2 Rfd7 24. Nf3 {½-½ Kovacevic,A (2480)-Scekic,M (2381) SRB-chT Subotica 2019 (8.1)}) 12... h6 {[%emt 0:01:20]} 13. a4 {[%emt 0:11:53]} Rb8 {[%emt 0:01:53]} 14. axb5 {[%emt 0:00:14]} axb5 {[%emt 0:00:01]} 15. Ne2 {[%emt 0:01:25]} d5 {[%emt 0:04:41]} 16. Ng3 {[%emt 0:01:44]} dxe4 {[%emt 0:11:40]} 17. dxe4 {[%emt 0:08:51]} (17. Nxe4 Nxe4 18. dxe4 Rd8 $15) 17... Nxb4 {[%emt 0:04:19]} 18. Nxe5 {[%emt 0:01:51]} Rd8 {[%emt 0:00:08]} 19. Nf3 {[%emt 0:08:42]} Nc6 {[%emt 0:06:34]} 20. c3 {[%emt 0:04:33]} Nd7 {[%emt 0:07:24]} 21. Nd4 {[%emt 0:05:20]} Nxd4 {[%emt 0:09:14]} (21... Nc5 $5) 22. cxd4 {[%emt 0:00:28]} c5 {[%emt 0:06:49]} (22... Kh8 {simplifies} 23. Ba5 Nb6 24. Bxb6 cxb6 25. Ne2 b4) 23. Qg4 {[%emt 0:08:52]} Qf7 $1 {[%emt 0:00:54]} 24. dxc5 {[%emt 0:06:01]} (24. Ra6 $11) 24... Bxc5 {[%emt 0:04:06]} 25. Qe2 {[%emt 0:01:12][%cal Oa1b1]} (25. Bxh6 $2 Ne5 (25... Bxf2+ 26. Kh1 $11) 26. Qg5 Bd4 $17 (26... Bxf2+ 27. Kh1 $16)) 25... b4 {[%emt 0:01:57][%csl Ob4] Black has a strong passed pawn} 26. Be3 {[%emt 0:02:46]} (26. Rab1 $11 {remains equal.}) 26... Rb8 {[%emt 0:00:58] White is now going downhill.} 27. Bxc5 {[%emt 0:05:22]} Nxc5 {[%emt 0:00:08]} 28. Qe3 {[%emt 0:00:04]} Rfc8 {[%emt 0:03:01]} 29. f4 {[%emt 0:05:24]} (29. Rab1 $17 {might work better.}) 29... b3 $19 {[%emt 0:01:58]} 30. f5 {[%emt 0:00:08]} b2 {[%emt 0:03:56]} 31. Rab1 {[%emt 0:00:05]} Na4 {[%emt 0:00:06]} 32. Qa3 {[%emt 0:05:43] [#]} Rc4 {[%emt 0:01:33]} 33. Qd6 $2 {[%emt 0:00:42]} (33. f6) 33... Qa7+ {[%emt 0:04:35]} 34. Kh1 {[%emt 0:00:03]} Qb6 {[%emt 0:00:04]} (34... Nc3 $142 35. Rxb2 Rxb2 36. fxe6 Rc7 (36... Nxe4 37. Qf8+ Kh7 38. Nxe4 $11)) 35. Qd7 $2 {[%emt 0:00:54]} (35. Qe5 {is the only way for White.} Rc5 36. Qd4) 35... Qc6 {[%emt 0:02:59]} (35... Nc5 36. Qe7 Qb7 (36... Nxe4 37. Nxe4 exf5 38. Nd6 $16) 37. Qd6 $15) 36. Qe7 {[%emt 0:01:09] And now f6 would win.} Re8 {[%emt 0:07:35]} 37. Qa7 {[%emt 0:00:20]} Qc7 {[%emt 0:00:00]} 38. Qa6 {[%emt 0:00:24]} Qc8 {[%emt 0:00:00]} 39. Qa7 {[%emt 0:00:16]} (39. Qb5) 39... Rf8 {[%emt 0:00:15]} 40. h3 {[%emt 0:01:14]} Qc7 {[%emt 0:00:59]} 41. Qa6 {[%emt 0:02:02]} Qc6 {[%emt 0:03:12]} 42. Qa7 {[%emt 0:01:23]} Rc1 {[%emt 0:02:05]} 43. Kh2 {[%emt 0:03:09]} exf5 {[%emt 0:05:18]} 44. exf5 {[%emt 0:00:58]} Rxf1 {[%emt 0:07:07]} 45. Rxf1 {[%emt 0:00:48]} Rf7 {[%emt 0:00:52] Prevents f6.} ({Not} 45... Nc3 46. f6 Rxf6 (46... b1=B 47. Qxg7#) (46... gxf6 $2 47. Nf5 $18) 47. Qb8+ (47. Nf5 $2 Rxf5 48. Qb8+ Kh7 $19) 47... Kh7 48. Rxf6 Qxf6 49. Qxb2 $11) 46. Qf2 {[%emt 0:05:52]} Rb7 {[%emt 0:05:21]} 47. Rb1 {[%emt 0:05:23]} Rb3 {[%emt 0:01:18]} 48. Qd2 {[%emt 0:04:25]} (48. Qd4 $142 Nc3 49. f6 Qxf6 (49... Nxb1 $2 50. Qd8+ Kh7 51. fxg7 $18) 50. Qc4+ Qf7 51. Qc8+ Kh7 52. Rxb2 Rxb2 53. Qxc3) 48... Kh7 {[%emt 0:01:54]} 49. f6 {[%emt 0:01:01]} Qxf6 {[%emt 0:01:08][%cal Ob3g3] And now ...Rxg3! would win.} (49... gxf6 50. Nf5 Rb7 (50... Qc7+ 51. Kh1 $16) 51. Qxh6+ (51. Nxh6 $2 Qc3 $19) 51... Kg8 52. Re1 (52. Qg6+ Kf8 $11) 52... Qc7+ 53. Ng3 $11) 50. Qc2+ {[%emt 0:01:15]} Qg6 {[%emt 0:00:06]} 51. Rxb2 {[%emt 0:00:02]} (51. Qxb3 $2 {loses.} Qxb1 52. Qxa4 Qg6 $19) 51... Rxb2 {[%emt 0:00:07]} 52. Qxa4 {[%emt 0:10:18][%mdl 4096] Endgame KQR-KQN} Qd6 {[%emt 0:00:49]} 53. Qe4+ {[%emt 0:00:00]} g6 {[%emt 0:00:08]} 54. Qf3 {[%emt 0:00:00] Prevents Rb3.} h5 {[%emt 0:00:41]} 55. Qf7+ {[%emt 0:00:00]} Kh6 {[%emt 0:00:11] ( -> ...h4)} 56. Qe8 $2 {[%emt 0:00:00] [#]} (56. Kh1 $19) 56... h4 {[%emt 0:00:51] Black mates.} 57. Qh8+ {[%emt 0:00:49]} Kg5 {[%emt 0:00:04]} 58. Qxb2 {[%emt 0:00:03]} hxg3+ {[%emt 0:00:03]} 59. Kg1 {[%emt 0:00:01]} Qd1# {[%emt 0:00:04] Weighted Error Value: White=0.46/Black=0.24 (precise)   Mistake:       	White=8     	Black=1      Inaccurate:     	White=3     	Black=5      OK:         	White=20    	Black=22     Best:        	White=4     	Black=3      Strong:       	---       	Black=1} 0-1

[Event "AUT Bundesliga 2024-25"]
[Site "Austria"]
[Date "2025.04.03"]
[Round "7.15"]
[White "Maghsoodloo, Parham"]
[Black "Erdos, Viktor"]
[Result "1-0"]
[Annotator "RC"]
[ECO "D32"]
[WhiteElo "2684"]
[BlackElo "2542"]
[PlyCount "87"]
[EventDate "2024.08.28"]
[EventType "team-tourn"]
[EventCountry "AUT"]
[SourceTitle "playchess.com"]
[Source "ChessBase"]
[SourceQuality "1"]
[TimeControl "40/5400+30:1800+30"]

1. c4 {[%emt 0:00:03]} e6 {[%emt 0:00:06]} 2. Nc3 {[%emt 0:00:06]} d5 {[%emt 0:00:05]} 3. d4 {[%emt 0:00:22]} c5 {[%emt 0:00:04]} 4. cxd5 {[%emt 0:00:47]} exd5 {[%emt 0:00:05]} 5. Nf3 {[%emt 0:04:06]} Nf6 {[%emt 0:00:46]} 6. Bg5 {[%emt 0:01:37]} Be6 {[%emt 0:00:07]} 7. a3 {[%emt 0:01:59]} Nc6 {[%emt 0:00:11]} 8. e3 {[%emt 0:03:13]} c4 {[%emt 0:02:51]} 9. g3 {[%emt 0:05:10]} Be7 {[%emt 0:02:09]} 10. Bg2 {[%emt 0:05:46]} O-O {[%emt 0:04:18]} 11. O-O {[%emt 0:03:04]} Rc8 {[%emt 0:29:41]} 12. Nd2 {[%emt 0:09:47]} Qd7 {[%emt 0:03:42]} 13. b3 {[%emt 0:32:04]} cxb3 {[%emt 0:05:05]} 14. Nxb3 {[%emt 0:02:20]} b6 {[%emt 0:01:16]} 15. Bxf6 {[%emt 0:00:28]} Bxf6 {[%emt 0:00:06]} 16. Ne2 {[%emt 0:00:04]} Ne7 {[%emt 0:07:08]} 17. Nbc1 {[%emt 0:01:06]} Bg4 {[%emt 0:14:57]} 18. Qb3 {[%emt 0:02:49]} Rc4 {[%emt 0:02:27]} 19. Nf4 {[%emt 0:05:42]} Rfc8 {[%emt 0:00:07]} 20. Na2 {[%emt 0:00:54]} g5 {[%emt 0:15:14]} 21. Nd3 {[%emt 0:00:35]} Ng6 {[%emt 0:00:45]} 22. Nb2 {[%emt 0:04:58]} Rc2 {[%emt 0:09:32]} 23. Nb4 {[%emt 0:09:32]} R8c3 {[%emt 0:00:03]} 24. Nxd5 {[%emt 0:01:35]} Rxb3 {[%emt 0:00:30]} 25. Nxf6+ {[%emt 0:00:03]} Kg7 {[%emt 0:00:08]} 26. Nxd7 {[%emt 0:00:02]} Rbxb2 {[%emt 0:01:21]} 27. Nb8 {[%emt 0:00:01]} Ne7 {[%emt 0:00:36]} 28. h3 {[%emt 0:03:32]} Be6 {[%emt 0:00:17]} 29. Rac1 {[%emt 0:00:02]} Bc4 {[%emt 0:00:49]} 30. Rxc2 {[%emt 0:00:28]} Rxc2 {[%emt 0:00:03]} 31. Ra1 {[%emt 0:00:30]} Nd5 {[%emt 0:00:56]} 32. Nc6 {[%emt 0:00:54]} Nc3 {[%emt 0:00:20]} 33. Nxa7 {[%emt 0:01:16]} Ne2+ {[%emt 0:00:07]} 34. Kh1 {[%emt 0:00:08]} Nc3 {[%emt 0:00:17]} 35. Nc8 {[%emt 0:00:42]} b5 {[%emt 0:00:21]} 36. Nd6 {[%emt 0:00:44]} Bd3 {[%emt 0:01:27]} 37. Kg1 {[%emt 0:01:35]} Ne2+ {[%emt 0:00:02]} 38. Kh2 {[%emt 0:00:18]} Nc3 {[%emt 0:00:03]} 39. f3 {[%emt 0:01:01]} Nd5 {[%emt 0:00:36]} 40. Re1 {[%emt 0:00:07]} Nxe3 {[%emt 0:01:09]} 41. Rxe3 {[%emt 0:30:19]} Bf1 {[%emt 0:30:02]} 42. Re1 {[%emt 0:00:44]} Bxg2 {[%emt 0:00:00]} 43. Nf5+ {[%emt 0:00:00]} Kg6 {[%emt 0:00:00]} 44. Ne3 {[%emt 0:00:00]} 1-0

[Event "AUT Bundesliga 2024-25"]
[Site "Austria"]
[Date "2025.04.03"]
[Round "7.16"]
[White "Sankalp Gupta"]
[Black "Sarana, Alexey"]
[Result "1/2-1/2"]
[Annotator "TA"]
[ECO "B92"]
[WhiteElo "2548"]
[BlackElo "2672"]
[PlyCount "110"]
[EventDate "2024.08.28"]
[EventType "team-tourn"]
[EventCountry "AUT"]
[SourceTitle "playchess.com"]
[Source "ChessBase"]
[SourceQuality "1"]
[TimeControl "40/5400+30:1800+30"]

{[%evp 23,110,-4,23,22,25,16,32,23,22,27,27,16,22,0,26,0,0,0,18,16,18,0,25,0,6,16,0,17,25,25,30,20,35,32,29,13,47,0,0,0,0,0,0,0,0,0,0,0,0,0,0,0,0,0,0,0,0,0,0,0,0,0,0,0,0,0,0,0,0,0,0,0,0,0,0,0,0,0,0,0,0,0,0,0,0,0,0,0,0]} 1. e4 {[%emt 0:00:09]} c5 {[%emt 0:00:04]} 2. Nf3 {[%emt 0:00:06]} d6 {[%emt 0:00:06]} 3. d4 {[%emt 0:00:04]} cxd4 {[%emt 0:00:04]} 4. Nxd4 {[%emt 0:00:05]} Nf6 {[%emt 0:00:06]} 5. Nc3 {[%emt 0:00:05]} a6 {[%emt 0:00:04]} 6. Be2 {[%emt 0:00:09]} e5 {[%emt 0:00:25]} 7. Nb3 {[%emt 0:00:04]} Be7 {[%emt 0:00:58]} 8. Be3 {[%emt 0:00:27]} Be6 {[%emt 0:00:35]} 9. Nd5 {[%emt 0:00:28]} Nbd7 {[%emt 0:01:07]} 10. Qd3 {[%emt 0:01:07]} O-O {[%emt 0:00:42]} 11. O-O {[%emt 0:00:43]} Bxd5 {[%emt 0:07:09]} 12. exd5 {[%emt 0:01:01]} Nc5 {[%emt 0:01:15]} 13. Nxc5 {[%emt 0:06:13] B92: Sicilian Najdorf: 6 Be2.} dxc5 {[%emt 0:00:57]} 14. c4 {[%emt 0:05:07]} Bd6 {[%emt 0:00:47] Not much happening anymore} 15. Bg5 {[%emt 0:09:40] White is slightly better.} e4 {[%emt 0:05:00]} 16. Qh3 $146 {[%emt 0:08:45]} (16. Qc2 Re8 17. a3 Be5 18. Rab1 Qd6 19. h3 h6 20. Be3 Bd4 21. b4 b6 22. Rfd1 Bxe3 23. fxe3 {0-1 Walter,K (1596)-Tsolakidou,S (1750) GER-ch Net qual2 U14 blitz 2012 (3)}) 16... Be5 {[%emt 0:04:39]} 17. Rab1 {[%emt 0:02:04]} Qd6 {[%emt 0:01:02]} 18. a3 {[%emt 0:00:30]} a5 {[%emt 0:01:42]} 19. Bd1 {[%emt 0:00:54]} h6 {[%emt 0:05:12]} 20. Bd2 {[%emt 0:04:43]} Nh7 {[%emt 0:01:49]} 21. Kh1 {[%emt 0:04:35]} f5 {[%emt 0:04:44]} 22. f3 {[%emt 0:08:11]} Bf4 {[%emt 0:02:17]} 23. Bxf4 {[%emt 0:04:42]} Qxf4 {[%emt 0:00:02]} 24. Qg3 {[%emt 0:00:10]} Qxg3 {[%emt 0:03:48]} 25. hxg3 {[%emt 0:00:28]} Nf6 {[%emt 0:00:05]} 26. Re1 {[%emt 0:06:30]} Rfe8 {[%emt 0:05:14]} 27. Bc2 {[%emt 0:04:53]} Kf8 {[%emt 0:12:02]} 28. Kg1 {[%emt 0:00:39]} Re7 {[%emt 0:02:22]} 29. g4 {[%emt 0:12:02]} exf3 {[%emt 0:12:03]} 30. gxf5 {[%emt 0:09:46]} (30. Rxe7 $14 {deserves consideration.} f2+ 31. Kxf2 Nxg4+ 32. Ke2 Kxe7 33. Bxf5) 30... Rxe1+ $11 {[%emt 0:06:38] The position is equal.} 31. Rxe1 {[%emt 0:01:35]} Re8 {[%emt 0:00:31]} 32. Rxe8+ {[%emt 0:01:44]} Nxe8 {[%emt 0:00:06]} 33. gxf3 {[%emt 0:01:38][%mdl 4096] Endgame KB-KN. White is a pawn up.} Ke7 {[%emt 0:00:29]} 34. Kf2 {[%emt 0:00:27]} Nd6 {[%emt 0:00:04]} 35. Bd3 {[%emt 0:00:15]} a4 {[%emt 0:03:34]} 36. Kg3 {[%emt 0:03:12]} Kf6 {[%emt 0:00:24]} 37. f4 {[%emt 0:03:45]} Nxf5+ {[%emt 0:03:04]} 38. Bxf5 {[%emt 0:00:55]} Kxf5 {[%emt 0:00:02] KP-KP} 39. Kh4 {[%emt 0:00:08] [#] Black must now prevent Kh5.} g6 {[%emt 0:01:48]} (39... Kxf4 $2 {too greedy.} 40. d6 $18) 40. Kg3 {[%emt 0:00:11]} Kf6 {[%emt 0:02:15]} 41. Kg4 {[%emt 0:06:40]} b6 {[%emt 0:01:00]} 42. Kg3 {[%emt 0:00:35]} Ke7 {[%emt 0:00:06] [#]} 43. Kg4 {[%emt 0:00:18]} Kd6 {[%emt 0:00:15][%cal Ob6b5] Strongly threatening ...b5!.} 44. f5 {[%emt 0:00:48]} gxf5+ {[%emt 0:00:11]} 45. Kxf5 {[%emt 0:00:10]} b5 {[%emt 0:00:04]} 46. cxb5 {[%emt 0:00:06] b6 would kill now.} Kxd5 {[%emt 0:00:02] ( -> ...Kd6). K3P-K3P} 47. Kg6 $1 {[%emt 0:00:21]} c4 {[%emt 0:00:36]} 48. Kxh6 {[%emt 0:00:18] K3P-KPP. White is a pawn up.} Kc5 {[%emt 0:00:02]} 49. Kg5 {[%emt 0:00:23]} Kxb5 {[%emt 0:00:05] KPP-KPP} 50. Kf4 {[%emt 0:00:17]} c3 {[%emt 0:00:03]} 51. bxc3 {[%emt 0:00:03]} Kc4 {[%emt 0:00:03]} 52. Ke3 {[%emt 0:00:15]} Kxc3 {[%emt 0:00:03]} 53. Ke2 {[%emt 0:00:07]} Kb3 {[%emt 0:00:03]} 54. Kd2 {[%emt 0:00:08]} Kxa3 {[%emt 0:00:02] ( -> ...Kb2)} 55. Kc3 {[%emt 0:00:33]} Ka2 {[%emt 0:00:43] Weighted Error Value: White=0.08 (flawless) /Black=0.05 (flawless)   Mistake:       	White=1     	---        Inaccurate:     	White=1     	Black=2      OK:         	White=15    	Black=21     Best:        	White=1     	Black=1      Strong:       	White=1     	---} 1/2-1/2

[Event "AUT Bundesliga 2024-25"]
[Site "Austria"]
[Date "2025.04.03"]
[Round "7.17"]
[White "Esipenko, Andrey"]
[Black "Perunovic, Milos"]
[Result "1/2-1/2"]
[Annotator "TA"]
[ECO "B47"]
[WhiteElo "2696"]
[BlackElo "2501"]
[PlyCount "44"]
[EventDate "2024.08.28"]
[EventType "team-tourn"]
[EventCountry "AUT"]
[SourceTitle "playchess.com"]
[Source "ChessBase"]
[SourceQuality "1"]
[TimeControl "40/5400+30:1800+30"]

{[%evp 18,44,29,29,41,42,52,48,73,49,55,41,69,0,0,8,16,1,13,-7,0,-12,0,-7,0,0,0,0,0]} 1. e4 {[%emt 0:00:06]} c5 {[%emt 0:00:20]} 2. Nf3 {[%emt 0:00:19]} e6 {[%emt 0:01:42]} 3. d4 {[%emt 0:00:33]} cxd4 {[%emt 0:00:07]} 4. Nxd4 {[%emt 0:00:08]} Nc6 {[%emt 0:01:06]} 5. Nc3 {[%emt 0:00:13]} Qc7 {[%emt 0:01:29]} 6. f4 {[%emt 0:00:21]} a6 {[%emt 0:06:27]} 7. Nxc6 {[%emt 0:00:55]} Qxc6 {[%emt 0:00:07]} 8. Bd3 {[%emt 0:00:09]} b5 {[%emt 0:00:35]} 9. Qe2 {[%emt 0:00:16]} Bb7 {[%emt 0:01:07]} 10. Bd2 {[%emt 0:00:10]} Rc8 {[%emt 0:05:36] B47: Sicilian: Taimanov: 5 Nc3 Qc7 6 f4, 6 g3 and 6 Be2.} 11. a3 {[%emt 0:00:20]} Qb6 {[%emt 0:12:50]} 12. Rf1 $146 {[%emt 0:12:09]} (12. e5 f5 13. a4 b4 14. a5 Qc7 15. Na4 Qxa5 16. O-O Rc6 17. Be3 Qc7 18. c4 {1-0 Babazada,K (2451)-Vokhidov,S (2597) Abu Dhabi op 29th 2023 (6)}) 12... Nf6 {[%emt 0:12:49] White is slightly better.} 13. e5 {[%emt 0:25:58]} Nd5 {[%emt 0:01:28]} 14. Ne4 {[%emt 0:00:14]} b4 {[%emt 0:12:22]} 15. axb4 {[%emt 0:00:20] White is more active.} (15. c4 $14 bxc3 16. bxc3) 15... Nxb4 $11 {[%emt 0:01:53] The position is equal.} 16. Bxb4 {[%emt 0:00:22]} Bxb4+ {[%emt 0:00:07]} 17. c3 {[%emt 0:00:08]} Be7 {[%emt 0:06:31]} 18. Qf2 {[%emt 0:05:01]} Qb3 {[%emt 0:12:19]} 19. Qc2 {[%emt 0:07:33]} Qb6 {[%emt 0:01:30]} 20. Qf2 {[%emt 0:16:10]} Qb3 {[%emt 0:00:18]} 21. Qc2 {[%emt 0:03:49]} Qb6 {[%emt 0:00:28]} 22. Qf2 {[%emt 0:00:17]} Qb3 {[%emt 0:00:07] Weighted Error Value: White=0.13 (very precise) /Black=0.09 (flawless)   Mistake:       	White=1     	---        Inaccurate:     	---       	Black=1      OK:         	White=5     	Black=4      Best:        	White=2     	---} 1/2-1/2

[Event "AUT Bundesliga 2024-25"]
[Site "Austria"]
[Date "2025.04.03"]
[Round "7.18"]
[White "Ivanisevic, Ivan"]
[Black "Bacrot, Etienne"]
[Result "0-1"]
[Annotator "TA"]
[ECO "D20"]
[WhiteElo "2527"]
[BlackElo "2633"]
[PlyCount "90"]
[EventDate "2024.08.28"]
[EventType "team-tourn"]
[EventCountry "AUT"]
[SourceTitle "playchess.com"]
[Source "ChessBase"]
[SourceQuality "1"]
[TimeControl "40/5400+30:1800+30"]

{[%evp 9,90,26,44,24,72,80,79,88,88,83,75,10,12,12,38,35,26,28,0,0,0,-85,-95,-80,-77,-172,-170,-158,-150,-162,-151,-163,-154,-155,-99,-180,-180,-279,-268,-266,-238,-233,-240,-206,-81,-81,-87,-94,-89,-92,-74,-95,-78,-192,-202,-348,-338,-460,-447,-1102,-1065,-1044,-1004,-953,-955,-1713,-2357,-1923,-1642,-2964,-2729,-2861,-2475,-2756,-4999,-29977,-29978,-29978,-29979,-29979,-29980,-29979,-29977]} 1. d4 {[%emt 0:00:03]} d5 {[%emt 0:00:12]} 2. c4 {[%emt 0:00:07]} dxc4 {[%emt 0:00:05]} 3. e4 {[%emt 0:00:33]} c5 {[%emt 0:00:14]} 4. d5 {[%emt 0:00:09]} Nf6 {[%emt 0:00:05]} 5. Nc3 {[%emt 0:00:06]} b5 {[%emt 0:00:07][%cal Bb7b5,Bb5b4][%mdl 32]} 6. Bf4 {[%emt 0:01:59][%cal Oa2a4] Black must now prevent a4!. D20: Queen's Gambit Accepted: 3 e3 and 3 e4.} (6. Nxb5 Qa5+ 7. Nc3 Nxe4 $11) 6... g5 $5 {[%emt 0:00:07][%mdl 4] Leaves trodden paths.} 7. Bxg5 $16 {[%emt 0:04:33]} b4 {[%emt 0:00:07] [#]} 8. Bxf6 {[%emt 0:03:11] White is better.} exf6 {[%emt 0:00:03]} 9. Na4 {[%emt 0:00:05]} Qe7 $146 {[%emt 0:10:14]} (9... Nd7 10. Bxc4 Bd6 11. Nf3 f5 12. exf5 O-O 13. O-O Ne5 14. Nxe5 Bxe5 15. Qg4+ Kh8 16. Nxc5 {1-0 Beliavsky,A (2518)-Bilych,O (2342) EU-ch 22nd Terme Catez 2022 (5)}) 10. Bxc4 {[%emt 0:04:57]} (10. f3 $16) 10... Qxe4+ $11 {[%emt 0:08:53]} 11. Qe2 {[%emt 0:00:06]} Qxe2+ {[%emt 0:05:01]} 12. Nxe2 {[%emt 0:00:07]} Nd7 {[%emt 0:01:17]} 13. a3 {[%emt 0:14:41]} Ne5 {[%emt 0:11:46]} 14. Bb5+ {[%emt 0:01:23]} Kd8 $1 {[%emt 0:00:24]} (14... Bd7 15. Bxd7+ Kxd7 16. axb4 $16) 15. f4 {[%emt 0:25:51]} (15. O-O $11 {remains equal.}) 15... Rb8 $1 $17 {[%emt 0:01:44]} 16. fxe5 {[%emt 0:01:26]} Rxb5 {[%emt 0:00:06]} 17. O-O {[%emt 0:00:39]} (17. exf6 $17 Bd7 18. axb4 Rxb4 19. Nac3) 17... fxe5 $19 {[%emt 0:02:54]} 18. Rxf7 {[%emt 0:00:38]} Ra5 {[%emt 0:04:45]} 19. axb4 {[%emt 0:03:29]} cxb4 {[%emt 0:00:51][%cal Oc8d7]} 20. b3 {[%emt 0:00:29]} Bd7 {[%emt 0:03:43][%cal Od7e8]} 21. Ng3 {[%emt 0:03:14]} Be8 {[%emt 0:07:41]} (21... Bxa4 $142 22. bxa4 Rxd5) 22. Rf6 {[%emt 0:03:55]} (22. Rb7 $2 Kc8 $19 (22... Rxd5 23. Rxa7 Bc6 24. Ra6 $15)) (22. Rff1 $17) 22... Be7 {[%emt 0:05:33]} (22... Rxd5 23. Ne4 $17) 23. Re6 {[%emt 0:07:17]} (23. Rff1 {is a better defense.}) 23... Bd7 {[%emt 0:18:38]} (23... Rxd5 24. Ra6 $17) 24. Rd1 {[%emt 0:01:55]} (24. Rxe5 Bf6 25. Ree1 Bd4+ (25... Rxd5 26. Rad1 $17) 26. Kh1 Bxa1 (26... Rxd5 27. Rad1 $17) 27. Rxa1 Re8 $19 (27... Rxd5 $2 28. Nb2 $19)) 24... Rxa4 {[%emt 0:05:58]} 25. bxa4 {[%emt 0:02:35][%cal Og3e4]} Bc5+ {[%emt 0:00:04]} 26. Kf1 {[%emt 0:00:09]} Bxe6 {[%emt 0:03:13]} (26... Bxa4 27. Rc1 Rf8+ 28. Ke2 (28. Ke1 b3 $17) 28... Rf2+ 29. Ke1 $11) (26... Rf8+ $19 {is more deadly.} 27. Ke2 Bxe6 (27... Bxa4 28. Rc1 $17) 28. dxe6+ Bd4) 27. dxe6+ {[%emt 0:00:06][%mdl 4096] Endgame KRB-KRN} Ke7 {[%emt 0:00:04]} 28. Rd5 {[%emt 0:04:03][%csl LRc5,LRe5]} Bd4 {[%emt 0:01:43]} (28... Kxe6 $2 29. Rxc5 a6 30. Ke2 $18) 29. Rb5 {[%emt 0:02:28] Wards off Rb8} Kxe6 {[%emt 0:01:10]} 30. Ke2 {[%emt 0:02:07]} Rc8 {[%emt 0:01:54]} 31. Ne4 {[%emt 0:02:01]} (31. Rxb4 $17 {was the only chance.} Rc2+ 32. Kf3) 31... Rc2+ {[%emt 0:01:54]} 32. Kf3 {[%emt 0:00:32]} (32. Kd3 $142 Rxg2 33. Rxb4) 32... Rb2 {[%emt 0:00:27]} 33. h4 {[%emt 0:01:07]} a6 {[%emt 0:01:10]} 34. Nc5+ {[%emt 0:03:04]} (34. Rb8 $142 Kd5 35. Rd8+ Kc4 36. Rd7) 34... Bxc5 {[%emt 0:01:23]} 35. Rxc5 {[%emt 0:00:06] KR-KR. Black is a pawn up.} b3 {[%emt 0:01:16]} 36. Rc6+ {[%emt 0:03:52]} Kd5 {[%emt 0:00:11]} 37. Rxa6 {[%emt 0:00:05]} Rb1 {[%emt 0:00:06] And now ...b2 would win.} 38. Rb6 {[%emt 0:03:23]} b2 {[%emt 0:00:07]} 39. Kg4 {[%emt 0:00:57]} e4 {[%emt 0:00:07]} 40. Rb5+ {[%emt 0:01:54]} Kc6 {[%emt 0:02:14] ( -> ...e3)} 41. Rb3 {[%emt 0:09:55] [#]} e3 $1 {[%emt 0:01:50][%mdl 512]} 42. Rxe3 {[%emt 0:00:31]} (42. Rc3+ Kd5) 42... Rc1 {[%emt 0:00:05] Black mates.} 43. Rb3 {[%emt 0:00:03]} b1=Q {[%emt 0:00:06]} ({Weaker is} 43... b1=B 44. Kg5 $17) 44. Rxb1 {[%emt 0:00:03]} Rxb1 {[%emt 0:00:05]} 45. Kg5 {[%emt 0:00:21]} Kd6 {[%emt 0:00:41] Weighted Error Value: White=0.78/Black=0.10 (very precise)   Mistake:       	White=8     	Black=3      Inaccurate:     	White=1     	Black=1      OK:         	White=7     	Black=9      Best:        	White=5     	Black=5      Strong:       	---       	Black=2} 0-1